[Event "Chess Festival Groningen 2023 | A"]
[Site "Groningen, Netherlands"]
[Date "2023.12.23"]
[Round "3.29"]
[White "Krasenkowa, Elena"]
[Black "Goudriaan, Rafael"]
[Result "1-0"]
[TimeControl "90min/40moves + 30min + 30sec/move"]
[WhiteElo "2109"]
[BlackElo "2039"]

1. d4 {[%clk 01:30:58]} Nf6 {[%clk 01:30:43]} {[%emt 00:00:11]} 2. c4 {[%clk
01:31:25]} {[%emt 00:00:19]} g6 {[%clk 01:30:51]} {[%emt 00:00:17]} 3. Nc3
{[%clk 01:31:50]} Bg7 {[%clk 01:31:16]} {[%emt 00:00:06]} 4. e4 {[%clk
01:32:15]} {[%emt 00:00:31]} d6 {[%clk 01:31:41]} 5. Nf3 {[%clk 01:32:36]} O-O
{[%clk 01:32:04]} 6. Be2 {[%clk 01:33:04]} Nbd7 {[%clk 01:32:28]} 7. O-O {[%clk
01:33:24]} {[%emt 00:00:10]} e5 {[%clk 01:32:42]} {[%emt 00:00:23]} 8. d5
{[%clk 01:33:50]} Nc5 {[%clk 01:32:24]} {[%emt 00:00:53]} 9. Nd2 {[%clk
01:33:29]} {[%emt 00:00:40]} a5 {[%clk 01:31:48]} {[%emt 00:01:07]} 10. b3
{[%clk 01:33:29]} {[%emt 00:00:29]} Bh6 {[%clk 01:30:51]} {[%emt 00:01:27]} 11.
Qc2 {[%clk 01:33:41]} {[%emt 00:00:30]} Ne8 {[%clk 01:23:34]} {[%emt 00:07:33]}
12. Nf3 {[%clk 01:23:56]} {[%emt 00:10:40]} Bxc1 {[%clk 01:22:45]} {[%emt
00:01:04]} 13. Qxc1 {[%clk 01:24:15]} {[%emt 00:00:05]} f5 {[%clk 01:19:39]}
{[%emt 00:03:34]} 14. exf5 {[%clk 01:22:26]} {[%emt 00:02:18]} Bxf5 {[%clk
01:18:29]} {[%emt 00:01:39]} 15. Qe3 {[%clk 01:21:50]} {[%emt 00:01:29]} Nf6
{[%clk 01:15:56]} {[%emt 00:02:51]} 16. Nd2 {[%clk 01:19:35]} {[%emt 00:02:40]}
Qd7 {[%clk 01:03:44]} {[%emt 00:12:48]} 17. h3 {[%clk 01:17:32]} {[%emt
00:02:24]} Qg7 {[%clk 01:03:59]} {[%emt 00:00:19]} 18. g4 {[%clk 01:16:57]}
{[%emt 00:01:03]} Bd7 {[%clk 01:02:43]} {[%emt 00:01:43]} 19. a3 {[%clk
01:14:21]} {[%emt 00:03:30]} b6 {[%clk 00:56:58]} {[%emt 00:05:51]} 20. b4
{[%clk 01:14:12]} {[%emt 00:00:41]} axb4 {[%clk 00:55:53]} {[%emt 00:01:33]} 21.
axb4 {[%clk 01:14:37]} {[%emt 00:00:15]} Na6 {[%clk 00:55:57]} {[%emt
00:00:25]} 22. Rab1 {[%clk 01:06:58]} {[%emt 00:08:01]} h5 {[%clk 00:48:24]}
{[%emt 00:08:02]} 23. f3 {[%clk 01:00:03]} {[%emt 00:07:42]} Nh7 {[%clk
00:40:13]} {[%emt 00:08:22]} 24. Nce4 {[%clk 00:59:00]} {[%emt 00:01:34]} Qe7
{[%clk 00:38:43]} {[%emt 00:02:00]} 25. Rf2 {[%clk 00:53:38]} {[%emt 00:05:52]}
Qh4 {[%clk 00:28:43]} {[%emt 00:10:32]} 26. Bf1 {[%clk 00:52:33]} {[%emt
00:01:33]} Nf6 {[%clk 00:16:39]} {[%emt 00:12:34]} 27. Qh6 {[%clk 00:42:13]}
{[%emt 00:10:52]} Nxe4 {[%clk 00:13:28]} {[%emt 00:04:20]} 28. Qxg6+ {[%clk
00:42:15]} Kh8 {[%clk 00:13:55]} 29. Qh6+ {[%clk 00:42:35]} {[%emt 00:00:09]}
Kg8 {[%clk 00:14:18]} 30. Nxe4 {[%clk 00:42:40]} {[%emt 00:00:24]} Rf7 {[%clk
00:13:41]} {[%emt 00:01:31]} 31. Rg2 {[%clk 00:36:53]} {[%emt 00:05:53]} 1-0

[Event "Chess Festival Groningen 2023 | A"]
[Site "Groningen, Netherlands"]
[Date "2023.12.23"]
[Round "3.30"]
[White "Van Rootselaar, Rik"]
[Black "Boer, Alef"]
[Result "1/2-1/2"]
[TimeControl "90min/40moves + 30min + 30sec/move"]
[WhiteElo "2105"]
[BlackElo "2017"]

1. d4 {[%clk 01:30:56]} {[%emt 00:00:35]} d5 {[%clk 01:30:53]} 2. c4 {[%clk
01:31:12]} dxc4 {[%clk 01:31:14]} {[%emt 00:00:08]} 3. Nf3 {[%clk 01:31:21]}
{[%emt 00:00:18]} a6 {[%clk 01:31:11]} {[%emt 00:00:41]} 4. e3 {[%clk
01:31:35]} {[%emt 00:00:13]} Nf6 {[%clk 01:31:27]} {[%emt 00:00:08]} 5. Bxc4
{[%clk 01:31:17]} {[%emt 00:00:52]} e6 {[%clk 01:31:52]} 6. O-O {[%clk
01:29:28]} {[%emt 00:02:19]} c5 {[%clk 01:32:18]} {[%emt 00:00:08]} 7. Nc3
{[%clk 01:25:19]} {[%emt 00:04:31]} b5 {[%clk 01:25:27]} {[%emt 00:07:45]} 8.
Be2 {[%clk 01:24:32]} {[%emt 00:00:52]} Bb7 {[%clk 01:25:51]} {[%emt 00:00:17]}
9. dxc5 {[%clk 01:22:59]} {[%emt 00:01:53]} Bxc5 {[%clk 01:26:05]} {[%emt
00:00:18]} 10. Qxd8+ {[%clk 01:22:34]} {[%emt 00:00:52]} Kxd8 {[%clk 01:26:28]}
{[%emt 00:00:36]} 11. a3 {[%clk 01:22:05]} {[%emt 00:00:32]} Ke7 {[%clk
01:24:32]} {[%emt 00:02:24]} 12. b4 {[%clk 01:20:22]} {[%emt 00:02:13]} Bd6
{[%clk 01:23:43]} {[%emt 00:01:48]} 13. Bb2 {[%clk 01:20:10]} {[%emt 00:00:35]}
Nbd7 {[%clk 01:23:01]} {[%emt 00:00:51]} 14. Nd4 {[%clk 01:16:33]} {[%emt
00:04:07]} Nb6 {[%clk 01:20:51]} {[%emt 00:02:42]} 15. Nb3 {[%clk 01:14:23]}
{[%emt 00:02:36]} Rac8 {[%clk 01:19:39]} {[%emt 00:01:50]} 16. Rfc1 {[%clk
01:10:38]} {[%emt 00:04:10]} Rc7 {[%clk 01:05:03]} {[%emt 00:15:04]} 17. Na5
{[%clk 01:07:48]} {[%emt 00:03:24]} Ba8 {[%clk 01:04:05]} {[%emt 00:01:24]} 18.
Bf3 {[%clk 00:52:42]} {[%emt 00:15:35]} Bxf3 {[%clk 01:04:07]} {[%emt
00:00:42]} 19. gxf3 {[%clk 00:53:05]} Nc4 {[%clk 01:00:55]} {[%emt 00:03:41]}
20. Nxc4 {[%clk 00:52:22]} {[%emt 00:01:07]} Rxc4 {[%clk 01:00:19]} {[%emt
00:01:07]} 21. Ne4 {[%clk 00:50:27]} {[%emt 00:02:24]} Rhc8 {[%clk 00:54:24]}
{[%emt 00:06:45]} 22. Rxc4 {[%clk 00:48:08]} {[%emt 00:02:32]} Rxc4 {[%clk
00:54:37]} {[%emt 00:00:14]} 23. Nxd6 {[%clk 00:46:24]} {[%emt 00:02:43]} Kxd6
{[%clk 00:52:54]} {[%emt 00:01:49]} 24. Bd4 {[%clk 00:36:04]} {[%emt 00:10:45]}
Rc6 {[%clk 00:42:59]} {[%emt 00:10:25]} 25. Kf1 {[%clk 00:25:17]} {[%emt
00:11:32]} e5 {[%clk 00:41:35]} {[%emt 00:01:39]} 26. Bc5+ {[%clk 00:25:41]}
{[%emt 00:00:33]} Ke6 {[%clk 00:41:59]} 27. e4 {[%clk 00:24:26]} {[%emt
00:01:26]} Nd7 {[%clk 00:42:01]} {[%emt 00:00:26]} 28. Be3 {[%clk 00:24:18]}
{[%emt 00:00:39]} g6 {[%clk 00:39:13]} {[%emt 00:03:19]} 1/2-1/2

[Event "Chess Festival Groningen 2023 | A"]
[Site "Groningen, Netherlands"]
[Date "2023.12.23"]
[Round "3.31"]
[White "Vijayakumar, Rishi"]
[Black "De Jong, Mathijs"]
[Result "0-1"]
[TimeControl "90min/40moves + 30min + 30sec/move"]
[WhiteElo "2104"]
[BlackElo "2008"]

1. d4 d5 2. c4 c6 3. Nf3 Nf6 4. Nc3 e6 5. e3 Nbd7 6. Qc2 Bd6 7. Bd3 O-O 8. O-O
b6 9. b3 Bb7 10. Bb2 Rc8 11. cxd5 cxd5 12. Qe2 Ne4 13. Rfc1 Nxc3 14. Rxc3 Rxc3
15. Bxc3 Qe7 16. Rc1 Rc8 17. Qd2 f5 18. b4 g5 19. b5 g4 20. Ne1 Nf6 21. a4 Ne4
22. Bxe4 fxe4 23. a5 Rc4 24. Qd1 h5 25. a6 Bc8 26. Bd2 Rxc1 27. Bxc1 Bd7 28. h3
Qg5 29. hxg4 Qxg4 30. f3 Qg3 31. f4 h4 32. Bd2 Bxb5 33. Qh5 Bd7 34. Nc2 h3 35.
Qxh3 Qxh3 36. gxh3 Bc8 37. Nb4 Bxb4 38. Bxb4 Bxa6 39. Bd6 Be2 40. Kf2 Bf3 41.
Bb8 a6 42. Bc7 b5 43. Ba5 Kf7 44. Kg3 Kg6 45. Bb4 Be2 46. Kf2 Bd1 47. Ke1 Bb3
48. Kf2 Bc4 49. Kg2 Kf7 50. Kg3 Be2 51. Kf2 Bh5 52. Kg3 Bg6 53. Kg4 Bf5+ 54.
Kg3 Ke8 55. h4 Kd7 56. h5 Kc6 57. Ba5 b4 58. Bxb4 Kb5 59. Bd2 a5 60. h6 a4 61.
Kh4 a3 62. Kg5 a2 63. Bc3 Kc4 64. Bb2 Kd3 65. Kf6 Kxe3 66. h7 Bxh7 67. Kxe6
Kxf4 68. Kxd5 e3 69. Kc4 e2 70. Bc3 e1=Q 71. Bxe1 {[%clk 00:55:18]} a1=Q {[%clk
00:55:14]} 0-1

[Event "Chess Festival Groningen 2023 | A"]
[Site "Groningen, Netherlands"]
[Date "2023.12.24"]
[Round "4.1"]
[White "Kobo, Ori"]
[Black "Kazakouski, Valery"]
[Result "1/2-1/2"]
[TimeControl "90min/40moves + 30min + 30sec/move"]
[WhiteElo "2541"]
[BlackElo "2586"]

1. d4 {[%clk 01:30:45]} {[%emt 00:00:13]} Nf6 {[%clk 01:30:15]} {[%emt
00:00:46]} 2. Nf3 {[%clk 01:30:45]} {[%emt 00:00:29]} d5 {[%clk 01:29:54]}
{[%emt 00:00:52]} 3. e3 {[%clk 01:30:51]} {[%emt 00:00:24]} c6 {[%clk
01:29:25]} {[%emt 00:00:59]} 4. h3 {[%clk 01:30:40]} {[%emt 00:00:41]} Bf5
{[%clk 01:29:24]} {[%emt 00:00:31]} 5. g4 {[%clk 01:30:49]} {[%emt 00:00:21]}
Bg6 {[%clk 01:29:17]} {[%emt 00:00:38]} 6. Ne5 {[%clk 01:30:44]} {[%emt
00:00:35]} Nfd7 {[%clk 01:29:37]} {[%emt 00:00:10]} 7. Nxg6 {[%clk 01:30:40]}
{[%emt 00:00:34]} hxg6 {[%clk 01:30:00]} {[%emt 00:00:07]} 8. c4 {[%clk
01:28:59]} {[%emt 00:02:10]} e6 {[%clk 01:29:33]} {[%emt 00:00:57]} 9. Nd2
{[%clk 01:28:05]} {[%emt 00:01:24]} Be7 {[%clk 01:28:08]} {[%emt 00:01:54]} 10.
Bg2 {[%clk 01:26:38]} {[%emt 00:01:57]} a5 {[%clk 01:26:41]} {[%emt 00:01:57]}
11. e4 {[%clk 01:19:06]} {[%emt 00:08:03]} Nb6 {[%clk 01:20:17]} {[%emt
00:06:55]} 12. c5 {[%clk 01:15:09]} {[%emt 00:04:26]} N6d7 {[%clk 01:19:54]}
{[%emt 00:00:53]} 13. O-O {[%clk 01:08:42]} {[%emt 00:06:55]} b6 {[%clk
01:12:46]} {[%emt 00:07:39]} 14. cxb6 {[%clk 00:56:02]} {[%emt 00:13:11]} Qxb6
{[%clk 01:11:38]} {[%emt 00:01:38]} 15. Qa4 {[%clk 00:48:11]} {[%emt 00:08:20]}
Qb4 {[%clk 01:03:19]} {[%emt 00:08:49]} 16. Qxb4 {[%clk 00:39:42]} {[%emt
00:09:00]} axb4 {[%clk 01:02:28]} {[%emt 00:01:21]} 17. Re1 {[%clk 00:40:06]}
{[%emt 00:00:06]} Nb6 {[%clk 00:58:01]} {[%emt 00:04:54]} 18. Nf3 {[%clk
00:37:16]} {[%emt 00:03:22]} N8d7 {[%clk 00:45:46]} {[%emt 00:12:45]} 19. Bf4
{[%clk 00:29:39]} {[%emt 00:08:06]} O-O {[%clk 00:40:25]} {[%emt 00:05:51]} 20.
Nd2 {[%clk 00:28:10]} {[%emt 00:01:59]} Bf6 {[%clk 00:33:42]} {[%emt 00:07:13]}
21. Nf3 {[%clk 00:21:46]} {[%emt 00:06:54]} dxe4 {[%clk 00:25:31]} {[%emt
00:08:42]} 22. Rxe4 {[%clk 00:21:26]} {[%emt 00:00:50]} b3 {[%clk 00:25:29]}
{[%emt 00:00:33]} 23. a3 {[%clk 00:20:47]} {[%emt 00:01:08]} Nc4 {[%clk
00:22:01]} {[%emt 00:03:59]} 24. Bf1 {[%clk 00:13:56]} {[%emt 00:07:21]} Ndb6
{[%clk 00:20:42]} {[%emt 00:01:49]} 25. Rb1 {[%clk 00:09:56]} {[%emt 00:04:30]}
Ra4 {[%clk 00:19:42]} {[%emt 00:01:29]} 26. Ree1 {[%clk 00:07:54]} {[%emt
00:02:31]} Rc8 {[%clk 00:14:33]} {[%emt 00:05:38]} 27. Rec1 {[%clk 00:06:26]}
{[%emt 00:02:00]} Be7 {[%clk 00:09:02]} {[%emt 00:06:01]} 28. Nd2 {[%clk
00:01:14]} {[%emt 00:05:41]} Nxd2 {[%clk 00:04:44]} {[%emt 00:04:48]} 29. Bxd2
{[%clk 00:01:43]} {[%emt 00:00:01]} Bf6 {[%clk 00:05:07]} {[%emt 00:00:07]} 30.
Rc3 {[%clk 00:01:16]} {[%emt 00:00:57]} Nd5 {[%clk 00:04:10]} {[%emt 00:01:28]}
31. Rxb3 {[%clk 00:01:32]} {[%emt 00:00:13]} Bxd4 {[%clk 00:04:34]} {[%emt
00:00:06]} 32. Rc1 {[%clk 00:00:59]} {[%emt 00:01:03]} Raa8 {[%clk 00:05:02]}
{[%emt 00:00:02]} 33. Bg2 {[%clk 00:00:35]} {[%emt 00:00:54]} c5 {[%clk
00:03:39]} {[%emt 00:01:53]} 34. Rb7 {[%clk 00:00:35]} {[%emt 00:00:30]} Rd8
{[%clk 00:01:47]} {[%emt 00:02:23]} 35. Rc2 {[%clk 00:00:33]} {[%emt 00:00:31]}
Rab8 {[%clk 00:01:11]} {[%emt 00:01:06]} 36. Rxb8 {[%clk 00:01:01]} {[%emt
00:00:02]} Rxb8 {[%clk 00:01:32]} {[%emt 00:00:09]} 37. b4 {[%clk 00:01:00]}
{[%emt 00:00:31]} cxb4 {[%clk 00:01:44]} {[%emt 00:00:18]} 38. axb4 {[%clk
00:01:16]} {[%emt 00:00:14]} Bf6 {[%clk 00:00:56]} {[%emt 00:01:18]} 39. Rc4
{[%clk 00:00:42]} {[%emt 00:01:04]} Kf8 {[%clk 00:00:45]} {[%emt 00:00:41]} 40.
Bf3 {[%clk 00:00:34]} {[%emt 00:00:38]} Ke8 {[%clk 00:00:35]} {[%emt 00:00:41]}
41. Bxd5 {[%clk 00:23:31]} {[%emt 00:07:32]} exd5 {[%clk 00:30:57]} {[%emt
00:00:08]} 42. Rc5 {[%clk 00:23:54]} {[%emt 00:00:08]} Be7 {[%clk 00:30:23]}
{[%emt 00:01:03]} 1/2-1/2

[Event "Chess Festival Groningen 2023 | A"]
[Site "Groningen, Netherlands"]
[Date "2023.12.24"]
[Round "4.2"]
[White "De Winter, Arthur"]
[Black "Romanov, Evgeny"]
[Result "1/2-1/2"]
[TimeControl "90min/40moves + 30min + 30sec/move"]
[WhiteElo "2405"]
[BlackElo "2561"]

1. e4 {[%clk 01:30:56]} {[%emt 00:00:03]} e5 {[%clk 01:30:22]} {[%emt
00:00:38]} 2. Nf3 {[%clk 01:31:19]} {[%emt 00:00:08]} Nc6 {[%clk 01:30:43]}
{[%emt 00:00:09]} 3. Bb5 {[%clk 01:31:43]} {[%emt 00:00:06]} a6 {[%clk
01:30:52]} {[%emt 00:00:21]} 4. Ba4 {[%clk 01:32:06]} {[%emt 00:00:07]} Nf6
{[%clk 01:31:11]} {[%emt 00:00:10]} 5. O-O {[%clk 01:32:30]} {[%emt 00:00:07]}
Be7 {[%clk 01:31:31]} {[%emt 00:00:10]} 6. d3 {[%clk 01:32:51]} {[%emt
00:00:08]} b5 {[%clk 01:31:21]} {[%emt 00:00:41]} 7. Bb3 {[%clk 01:33:16]}
{[%emt 00:00:06]} d6 {[%clk 01:31:44]} {[%emt 00:00:07]} 8. c3 {[%clk
01:33:42]} {[%emt 00:00:04]} O-O {[%clk 01:31:46]} {[%emt 00:00:28]} 9. h3
{[%clk 01:34:09]} {[%emt 00:00:03]} h6 {[%clk 01:31:26]} {[%emt 00:00:51]} 10.
Nbd2 {[%clk 01:27:45]} {[%emt 00:06:54]} Re8 {[%clk 01:31:25]} {[%emt
00:00:31]} 11. d4 {[%clk 01:23:57]} {[%emt 00:04:18]} Bf8 {[%clk 01:30:40]}
{[%emt 00:01:15]} 12. Bc2 {[%clk 01:22:52]} {[%emt 00:01:35]} g6 {[%clk
01:08:52]} {[%emt 00:22:18]} 13. d5 {[%clk 01:21:21]} {[%emt 00:02:02]} Ne7
{[%clk 01:07:15]} {[%emt 00:02:06]} 14. b3 {[%clk 01:18:42]} {[%emt 00:03:09]}
Nh5 {[%clk 01:02:20]} {[%emt 00:05:24]} 15. Re1 {[%clk 01:12:50]} {[%emt
00:06:22]} Bg7 {[%clk 01:02:11]} {[%emt 00:00:39]} 16. a4 {[%clk 01:08:31]}
{[%emt 00:04:50]} Bd7 {[%clk 01:01:37]} {[%emt 00:01:04]} 17. c4 {[%clk
01:06:26]} {[%emt 00:02:35]} c5 {[%clk 00:56:11]} {[%emt 00:05:56]} 18. dxc6
{[%clk 00:57:46]} {[%emt 00:09:10]} Bxc6 {[%clk 00:55:14]} {[%emt 00:01:26]} 19.
Nf1 {[%clk 00:50:18]} {[%emt 00:07:58]} bxc4 {[%clk 00:44:36]} {[%emt
00:11:10]} 20. bxc4 {[%clk 00:50:43]} {[%emt 00:00:04]} f5 {[%clk 00:44:53]}
{[%emt 00:00:12]} 21. Ba3 {[%clk 00:44:03]} {[%emt 00:07:10]} fxe4 {[%clk
00:42:55]} {[%emt 00:02:28]} 22. Bxe4 {[%clk 00:39:20]} {[%emt 00:05:13]} Bxe4
{[%clk 00:43:17]} {[%emt 00:00:08]} 23. Rxe4 {[%clk 00:39:47]} {[%emt
00:00:03]} Nf6 {[%clk 00:43:38]} {[%emt 00:00:09]} 24. Re1 {[%clk 00:39:41]}
{[%emt 00:00:35]} e4 {[%clk 00:42:50]} {[%emt 00:01:19]} 25. Nd4 {[%clk
00:37:46]} {[%emt 00:02:25]} Qd7 {[%clk 00:42:49]} {[%emt 00:00:31]} 26. Ng3
{[%clk 00:35:32]} {[%emt 00:02:44]} d5 {[%clk 00:41:04]} {[%emt 00:02:15]} 27.
c5 {[%clk 00:28:25]} {[%emt 00:07:37]} Nc6 {[%clk 00:37:42]} {[%emt 00:03:51]}
28. Nxc6 {[%clk 00:27:02]} {[%emt 00:01:54]} Qxc6 {[%clk 00:38:07]} {[%emt
00:00:05]} 29. Rb1 {[%clk 00:23:20]} {[%emt 00:04:12]} Nd7 {[%clk 00:34:47]}
{[%emt 00:03:48]} 30. Qd2 {[%clk 00:21:24]} {[%emt 00:02:27]} Rad8 {[%clk
00:32:49]} {[%emt 00:02:28]} 31. Bb2 {[%clk 00:17:37]} {[%emt 00:04:18]} Nxc5
{[%clk 00:09:47]} {[%emt 00:23:32]} 32. Bxg7 {[%clk 00:17:07]} {[%emt
00:01:00]} Kxg7 {[%clk 00:10:15]} {[%emt 00:00:01]} 33. Qd4+ {[%clk 00:11:49]}
{[%emt 00:05:48]} Kf7 {[%clk 00:10:39]} {[%emt 00:00:06]} 34. Rec1 {[%clk
00:10:55]} {[%emt 00:01:24]} Rc8 {[%clk 00:10:08]} {[%emt 00:01:01]} 35. a5
{[%clk 00:08:01]} {[%emt 00:03:25]} Qd6 {[%clk 00:10:00]} {[%emt 00:00:37]} 36.
Rb6 {[%clk 00:03:25]} {[%emt 00:05:06]} Qe5 {[%clk 00:10:23]} {[%emt 00:00:06]}
37. Qe3 {[%clk 00:02:03]} {[%emt 00:01:53]} Qg5 {[%clk 00:07:53]} {[%emt
00:03:00]} 38. f4 {[%clk 00:02:16]} {[%emt 00:00:17]} exf3 {[%clk 00:06:54]}
{[%emt 00:01:29]} 39. Qxf3+ {[%clk 00:02:38]} {[%emt 00:00:08]} Kg8 {[%clk
00:06:37]} {[%emt 00:00:47]} 40. Rd1 {[%clk 00:02:41]} {[%emt 00:00:26]} Rcd8
{[%clk 00:01:28]} {[%emt 00:05:39]} 41. h4 {[%clk 00:27:34]} {[%emt 00:05:38]}
Qe3+ {[%clk 00:29:55]} {[%emt 00:02:03]} 42. Qxe3 {[%clk 00:27:59]} {[%emt
00:00:06]} Rxe3 {[%clk 00:30:21]} {[%emt 00:00:03]} 43. Rxg6+ {[%clk 00:28:24]}
{[%emt 00:00:05]} Kh7 {[%clk 00:30:46]} {[%emt 00:00:06]} 44. Rxh6+ {[%clk
00:24:44]} {[%emt 00:04:10]} Kxh6 {[%clk 00:30:30]} {[%emt 00:00:46]} 45. Nf5+
{[%clk 00:25:10]} {[%emt 00:00:04]} Kh5 {[%clk 00:30:24]} {[%emt 00:00:36]} 46.
Nxe3 {[%clk 00:25:07]} {[%emt 00:00:33]} d4 {[%clk 00:30:20]} {[%emt 00:00:34]}
47. g4+ {[%clk 00:23:34]} {[%emt 00:02:04]} Kxh4 {[%clk 00:21:52]} {[%emt
00:08:57]} 48. Rxd4 {[%clk 00:23:57]} {[%emt 00:00:07]} Rxd4 {[%clk 00:22:17]}
49. Nf5+ {[%clk 00:24:25]} {[%emt 00:00:07]} Kxg4 {[%clk 00:22:41]} {[%emt
00:00:06]} 50. Nxd4 {[%clk 00:24:52]} {[%emt 00:00:02]} Kf4 {[%clk 00:23:05]}
{[%emt 00:00:06]} 51. Nc6 {[%clk 00:25:17]} {[%emt 00:00:05]} Nb3 {[%clk
00:23:29]} {[%emt 00:00:05]} 52. Nb4 {[%clk 00:25:43]} {[%emt 00:00:04]} Nxa5
{[%clk 00:23:56]} {[%emt 00:00:04]} 53. Nxa6 {[%clk 00:26:10]} {[%emt
00:00:03]} 1/2-1/2

[Event "Chess Festival Groningen 2023 | A"]
[Site "Groningen, Netherlands"]
[Date "2023.12.24"]
[Round "4.3"]
[White "Stremavicius, Titas"]
[Black "Krasenkow, Michal"]
[Result "1-0"]
[TimeControl "90min/40moves + 30min + 30sec/move"]
[WhiteElo "2550"]
[BlackElo "2532"]

1. Nf3 {[%clk 01:30:57]} {[%emt 00:00:02]} d5 {[%clk 01:30:54]} {[%emt
00:00:08]} 2. g3 {[%clk 01:31:19]} {[%emt 00:00:08]} Bg4 {[%clk 01:30:36]}
{[%emt 00:00:48]} 3. Bg2 {[%clk 01:31:30]} {[%emt 00:00:18]} Nd7 {[%clk
01:30:58]} {[%emt 00:00:08]} 4. d4 {[%clk 01:31:36]} {[%emt 00:00:24]} e6
{[%clk 01:30:44]} {[%emt 00:00:45]} 5. c4 {[%clk 01:28:39]} {[%emt 00:03:27]}
c6 {[%clk 01:30:48]} {[%emt 00:00:27]} 6. h3 {[%clk 01:28:21]} {[%emt
00:00:48]} Bh5 {[%clk 01:29:46]} {[%emt 00:01:33]} 7. O-O {[%clk 01:26:54]}
{[%emt 00:01:56]} Ngf6 {[%clk 01:29:28]} {[%emt 00:00:49]} 8. cxd5 {[%clk
01:26:17]} {[%emt 00:01:07]} cxd5 {[%clk 01:25:50]} {[%emt 00:04:09]} 9. Qb3
{[%clk 01:19:09]} {[%emt 00:07:37]} Qb6 {[%clk 01:25:29]} {[%emt 00:00:51]} 10.
Qxb6 {[%clk 01:19:29]} {[%emt 00:00:10]} Nxb6 {[%clk 01:25:51]} {[%emt
00:00:08]} 11. g4 {[%clk 01:19:52]} {[%emt 00:00:06]} Bg6 {[%clk 01:26:10]}
{[%emt 00:00:12]} 12. Ne5 {[%clk 01:20:18]} {[%emt 00:00:05]} Bd6 {[%clk
01:20:10]} {[%emt 00:06:30]} 13. Nc3 {[%clk 01:11:37]} {[%emt 00:09:10]} Rc8
{[%clk 01:18:37]} {[%emt 00:02:03]} 14. Bf4 {[%clk 00:55:42]} {[%emt 00:16:25]}
Bb8 {[%clk 01:13:12]} {[%emt 00:05:55]} 15. Rfc1 {[%clk 00:44:46]} {[%emt
00:11:26]} Ke7 {[%clk 01:12:15]} {[%emt 00:01:27]} 16. b3 {[%clk 00:39:57]}
{[%emt 00:05:19]} Nfd7 {[%clk 01:09:49]} {[%emt 00:02:56]} 17. Nxg6+ {[%clk
00:37:18]} {[%emt 00:03:08]} hxg6 {[%clk 01:09:08]} {[%emt 00:01:11]} 18. Bd2
{[%clk 00:37:16]} {[%emt 00:00:32]} f5 {[%clk 01:07:33]} {[%emt 00:02:06]} 19.
a4 {[%clk 00:33:48]} {[%emt 00:03:58]} Rc6 {[%clk 01:06:00]} {[%emt 00:02:04]}
20. f3 {[%clk 00:25:29]} {[%emt 00:08:48]} Nf6 {[%clk 01:01:38]} {[%emt
00:04:52]} 21. a5 {[%clk 00:25:53]} {[%emt 00:00:06]} Nbd7 {[%clk 01:01:35]}
{[%emt 00:00:33]} 22. g5 {[%clk 00:18:22]} {[%emt 00:08:01]} Nh5 {[%clk
01:00:00]} {[%emt 00:02:05]} 23. e3 {[%clk 00:18:50]} {[%emt 00:00:02]} Ng3
{[%clk 00:52:34]} {[%emt 00:07:57]} 24. Kf2 {[%clk 00:18:21]} {[%emt 00:00:59]}
a6 {[%clk 00:51:33]} {[%emt 00:01:32]} 25. Na2 {[%clk 00:17:53]} {[%emt
00:00:57]} Rhc8 {[%clk 00:49:06]} {[%emt 00:02:57]} 26. Rxc6 {[%clk 00:16:45]}
{[%emt 00:01:38]} Rxc6 {[%clk 00:49:22]} {[%emt 00:00:15]} 27. Rc1 {[%clk
00:16:55]} {[%emt 00:00:18]} Rxc1 {[%clk 00:49:24]} {[%emt 00:00:28]} 28. Nxc1
{[%clk 00:17:18]} {[%emt 00:00:07]} f4 {[%clk 00:41:12]} {[%emt 00:08:42]} 29.
e4 {[%clk 00:13:16]} {[%emt 00:04:32]} Nh5 {[%clk 00:38:47]} {[%emt 00:02:55]}
30. exd5 {[%clk 00:07:03]} {[%emt 00:06:43]} exd5 {[%clk 00:38:24]} {[%emt
00:00:54]} 31. h4 {[%clk 00:05:06]} {[%emt 00:02:26]} Ba7 {[%clk 00:34:55]}
{[%emt 00:04:00]} 32. Ne2 {[%clk 00:04:51]} {[%emt 00:00:44]} Ne5 {[%clk
00:26:01]} {[%emt 00:09:24]} 33. Bh3 {[%clk 00:05:15]} {[%emt 00:00:06]} Nc6
{[%clk 00:25:52]} {[%emt 00:00:40]} 34. Bc3 {[%clk 00:04:36]} {[%emt 00:01:09]}
b6 {[%clk 00:23:10]} {[%emt 00:03:11]} 35. axb6 {[%clk 00:02:34]} {[%emt
00:02:33]} Bxb6 {[%clk 00:23:32]} {[%emt 00:00:08]} 36. Bg4 {[%clk 00:03:00]}
{[%emt 00:00:04]} Kd6 {[%clk 00:18:31]} {[%emt 00:05:31]} 37. Ke1 {[%clk
00:01:10]} {[%emt 00:02:20]} Ng3 {[%clk 00:05:57]} {[%emt 00:13:04]} 38. Nxf4
{[%clk 00:01:36]} {[%emt 00:00:04]} Nxd4 {[%clk 00:06:20]} {[%emt 00:00:07]} 39.
Nxg6 {[%clk 00:01:59]} {[%emt 00:00:08]} Ndf5 {[%clk 00:05:55]} {[%emt
00:00:55]} 40. Be5+ {[%clk 00:01:18]} {[%emt 00:01:11]} Kc6 {[%clk 00:06:19]}
{[%emt 00:00:06]} 41. h5 {[%clk 00:23:11]} {[%emt 00:08:37]} Be3 {[%clk
00:35:51]} {[%emt 00:00:57]} 42. Bxg3 {[%clk 00:21:02]} {[%emt 00:02:40]} Nxg3
{[%clk 00:36:19]} {[%emt 00:00:02]} 43. h6 {[%clk 00:21:08]} {[%emt 00:00:24]}
gxh6 {[%clk 00:36:47]} {[%emt 00:00:02]} 44. Ne5+ {[%clk 00:21:29]} {[%emt
00:00:08]} 1-0